fUST/lending_fUST_20260104
["ID","MTS","AMOUNT","RATE_DAILY","PERIOD"]
[400425326,1767539438930,-342.21509661,9.544e-05,2]
[400425327,1767539438941,-500.0,9.544e-05,2]
[400425328,1767539438952,-500.0,9.544e-05,2]
[400425329,1767539438962,-500.0,9.544e-05,2]
[400425330,1767539438973,-500.0,9.544e-05,2]
[400425331,1767539438983,-500.0,9.544e-05,2]
[400425332,1767539438994,-500.0,9.544e-05,2]
[400425333,1767539439004,-500.0,9.544e-05,2]
[400425334,1767539439014,-500.0,9.544e-05,2]
[400425335,1767539439024,-500.0,9.544e-05,2]
[400425336,1767539439035,-500.0,9.544e-05,2]
[400425337,1767539439044,-500.0,9.544e-05,2]
[400425338,1767539439054,-500.0,9.544e-05,2]
[400425339,1767539439064,-500.0,9.544e-05,2]
[400425340,1767539439074,-275.20900098,9.544e-05,2]
[400425341,1767539439083,-500.0,9.544e-05,2]
[400425342,1767539439094,-500.0,9.544e-05,2]
[400425343,1767539439104,-500.0,9.544e-05,2]
[400425344,1767539439124,-500.0,9.544e-05,2]
[400425345,1767539439141,-500.0,9.544e-05,2]
[400425346,1767539439152,-500.0,9.544e-05,2]
[400425347,1767539439163,-500.0,9.544e-05,2]
[400425348,1767539439174,-500.0,9.544e-05,2]
[400425349,1767539439185,-500.0,9.544e-05,2]
[400425350,1767539439196,-500.0,9.544e-05,2]
[400425351,1767539439207,-500.0,9.544e-05,2]
[400425352,1767539439217,-500.0,9.544e-05,2]
[400425353,1767539439229,-500.0,9.544e-05,2]
[400425354,1767539439240,-500.0,9.544e-05,2]
[400425355,1767539439250,-500.0,9.544e-05,2]
[400425356,1767539439261,-500.0,9.544e-05,2]
[400425357,1767539439272,-500.0,9.544e-05,2]
[400425358,1767539439283,-500.0,9.544e-05,2]
[400425359,1767539439294,-500.0,9.544e-05,2]
[400425360,1767539439305,-500.0,9.544e-05,2]
[400425361,1767539439315,-500.0,9.544e-05,2]
[400425362,1767539439326,-500.0,9.544e-05,2]
[400425363,1767539439341,-500.0,9.544e-05,2]
[400425364,1767539439352,-500.0,9.544e-05,2]
[400425365,1767539439363,-500.0,9.544e-05,2]
[400425366,1767539439375,-500.0,9.544e-05,2]
[400425367,1767539439385,-500.0,9.544e-05,2]
[400425368,1767539439397,-500.0,9.544e-05,2]
[400425369,1767539439409,-500.0,9.544e-05,2]
[400425370,1767539439420,-500.0,9.544e-05,2]
[400425371,1767539439430,-500.0,9.544e-05,2]
[400425372,1767539439440,-500.0,9.544e-05,2]
[400425373,1767539439451,-500.0,9.544e-05,2]
[400425374,1767539439462,-500.0,9.544e-05,2]
[400425375,1767539439473,-500.0,9.544e-05,2]
[400425376,1767539439484,-500.0,9.544e-05,2]
[400425377,1767539439495,-500.0,9.544e-05,2]
[400425378,1767539439505,-500.0,9.544e-05,2]
[400425379,1767539439515,-500.0,9.544e-05,2]
[400425380,1767539439525,-500.0,9.544e-05,2]
[400425381,1767539439536,-500.0,9.544e-05,2]
[400425382,1767539439547,-500.0,9.544e-05,2]
[400425383,1767539439557,-500.0,9.544e-05,2]
[400425385,1767539439568,-500.0,9.544e-05,2]
[400425386,1767539439578,-500.0,9.544e-05,2]
[400425387,1767539439588,-500.0,9.544e-05,2]
[400425388,1767539439598,-410.0,9.544e-05,2]
[400425389,1767539439608,-500.0,9.544e-05,2]
[400425390,1767539439619,-500.0,9.544e-05,2]
[400425391,1767539439629,-500.0,9.544e-05,2]
[400425392,1767539439639,-500.0,9.544e-05,2]
[400425393,1767539439650,-500.0,9.544e-05,2]
[400425394,1767539439660,-500.0,9.544e-05,2]
[400425395,1767539439670,-500.0,9.544e-05,2]
[400425396,1767539439680,-500.0,9.544e-05,2]
[400425397,1767539439690,-537.28777132,9.544e-05,2]
[400425398,1767539439700,-500.0,9.544e-05,2]
[400425399,1767539439710,-500.0,9.544e-05,2]
[400425400,1767539439720,-500.0,9.544e-05,2]
[400425401,1767539439730,-500.0,9.544e-05,2]
[400425402,1767539439740,-335.98092082,9.544e-05,2]
[400425403,1767539439750,-500.0,9.544e-05,2]
[400425404,1767539439760,-500.0,9.544e-05,2]
[400425405,1767539439771,-500.0,9.544e-05,2]
[400425406,1767539439781,-500.0,9.544e-05,2]
[400425407,1767539439792,-500.0,9.544e-05,2]
[400425408,1767539439802,-500.0,9.544e-05,2]
[400425409,1767539439812,-500.0,9.544e-05,2]
[400425410,1767539439822,-500.0,9.544e-05,2]
[400425411,1767539439833,-500.0,9.544e-05,2]
[400425412,1767539439843,-500.0,9.544e-05,2]
[400425413,1767539439854,-500.0,9.544e-05,2]
[400425414,1767539439865,-500.0,9.544e-05,2]
[400425415,1767539439876,-500.0,9.544e-05,2]
[400425416,1767539439886,-595.39859766,9.544e-05,2]
[400425417,1767539439896,-595.39859766,9.544e-05,2]
[400425418,1767539439906,-595.39859766,9.544e-05,2]
[400425419,1767539439917,-595.39859766,9.544e-05,2]
[400425420,1767539439927,-595.39859766,9.544e-05,2]
[400425421,1767539439938,-595.39859766,9.544e-05,2]
[400425422,1767539439948,-595.39859766,9.544e-05,2]
[400425423,1767539439959,-595.39859766,9.544e-05,2]
[400425424,1767539439969,-595.39859766,9.544e-05,2]
[400425425,1767539439979,-500.0,9.544e-05,2]
[400425426,1767539439989,-500.0,9.544e-05,2]
[400425427,1767539439999,-500.0,9.544e-05,2]
[400425430,1767539440010,-500.0,9.544e-05,2]
[400425432,1767539440020,-500.0,9.544e-05,2]
[400425433,1767539440030,-500.0,9.544e-05,2]
[400425434,1767539440040,-500.0,9.544e-05,2]
[400425435,1767539440050,-500.0,9.544e-05,2]
[400425436,1767539440060,-500.0,9.544e-05,2]
[400425437,1767539440070,-500.0,9.544e-05,2]
[400425438,1767539440080,-500.0,9.544e-05,2]
[400425439,1767539440090,-500.0,9.544e-05,2]
[400425440,1767539440099,-500.0,9.544e-05,2]
[400425441,1767539440110,-500.0,9.544e-05,2]
[400425442,1767539440120,-500.0,9.544e-05,2]
[400425443,1767539440130,-500.0,9.544e-05,2]
[400425444,1767539440140,-500.0,9.544e-05,2]
[400425445,1767539440150,-500.0,9.544e-05,2]
[400425446,1767539440159,-500.0,9.544e-05,2]
[400425447,1767539440169,-500.0,9.544e-05,2]
[400425448,1767539440179,-383.59809208,9.544e-05,2]
[400425450,1767539440189,-500.0,9.544e-05,2]
[400425452,1767539440199,-500.0,9.544e-05,2]
[400425453,1767539440208,-219.31072622,9.544e-05,2]
[400425455,1767539440218,-500.0,9.544e-05,2]
[400425456,1767539440228,-500.0,9.544e-05,2]
[400425457,1767539440238,-500.0,9.544e-05,2]
[400425458,1767539440248,-300.0,9.544e-05,2]
[400425460,1767539440258,-500.0,9.544e-05,2]
[400425462,1767539440267,-500.0,9.544e-05,2]
[400425464,1767539440277,-500.0,9.544e-05,2]
[400425465,1767539440290,-500.0,9.544e-05,2]
[400425467,1767539440311,-500.0,9.544e-05,2]
[400425468,1767539440321,-794.18490365,9.544e-05,2]
[400425470,1767539440333,-794.18490365,9.544e-05,2]
[400425471,1767539440344,-500.0,9.545e-05,2]
[400425472,1767539440354,-161.25273962,9.611e-05,2]
[400425473,1767539440364,-173.09617418,9.611e-05,2]
[400425474,1767539440374,-391.08159099,9.611e-05,2]
[400425475,1767539440384,-500.0,9.612e-05,2]
[400425476,1767539440394,-1850.07213976,9.678e-05,2]
[400425477,1767539440404,-625.15985308,9.749e-05,2]
[400425478,1767539440418,-159.65843664,9.749e-05,2]
[400425479,1767539440428,-205.4,9.789e-05,2]
[400425481,1767539440438,-500.0,9.819e-05,2]
[400425482,1767539440448,-712.06243302,9.887e-05,2]
[400425484,1767539440458,-391.08159099,9.893e-05,2]
[400425486,1767539440468,-34262.8340132,9.991e-05,2]
[400425488,1767539440478,-631.56,0.0001,2]
[400425490,1767539440487,-259872.0,0.0001,2]
[400425492,1767539440497,-200.0,0.00010033,7]
[400425494,1767539440507,-1116.06283567,0.00010045,2]
[400425496,1767539440517,-391.08159099,0.00010076,2]
[400425498,1767539440527,-500.0,0.00010093,2]
[400425500,1767539440537,-1284.51,0.00010093,2]
[400425502,1767539440546,-2193.26477514,0.00010095,2]
[400425504,1767539440556,-2112.3095036,0.00010095,2]
[400425506,1767539440566,-2598.63956553,0.00010096,2]
[400425508,1767539440578,-1570.23163721,0.00010096,2]
[400425510,1767539440588,-3533.02118373,0.00010096,2]
[400425512,1767539440598,-200.0,0.00010167,3]
[400425514,1767539440608,-4752.6963831,0.00010185,2]
[400425516,1767539440619,-300.0,0.00010193,2]
[400425518,1767539440630,-300.0,0.00010193,2]
[400425520,1767539440642,-300.0,0.00010193,2]
[400425522,1767539440664,-300.0,0.00010193,2]
[400425524,1767539440686,-300.0,0.00010193,2]
[400425526,1767539440696,-300.0,0.00010193,2]
[400425529,1767539440707,-300.0,0.00010193,2]
[400425532,1767539440719,-300.0,0.00010193,2]
[400425534,1767539440730,-300.0,0.00010193,2]
[400425536,1767539440741,-300.0,0.00010193,2]
[400425538,1767539440751,-300.0,0.00010193,2]
[400425540,1767539440762,-300.0,0.00010193,2]
[400425542,1767539440773,-300.0,0.00010193,2]
[400425544,1767539440783,-300.0,0.00010193,2]
[400425546,1767539440793,-300.0,0.00010193,2]
[400425547,1767539440804,-600.0,0.00010193,2]
[400425549,1767539440814,-631.56,0.000102,2]
[400425551,1767539440824,-234.67111133,0.00010296,2]
[400425553,1767539440834,-155.98604314,0.00010296,2]
[400425555,1767539440845,-164.3735124,0.00010297,2]
[400425557,1767539440855,-1664.0,0.00010314,2]
[400425559,1767539440867,-420.0,0.00010314,2]
[400425561,1767539440878,-1680.0,0.00010315,2]
[400425563,1767539440888,-278.0,0.00010315,2]
[400425565,1767539440898,-420.0,0.00010315,2]
[400425567,1767539440908,-420.0,0.00010315,2]
[400425569,1767539440919,-2445.72241294,0.00010336,2]
[400425571,1767539440929,-391.08159099,0.00010358,2]
[400425573,1767539440941,-631.56,0.000104,2]
[400425575,1767539440951,-212.754161,0.00010411,2]
[400425577,1767539440961,-476.02615107,0.00010419,2]
[400425579,1767539440974,-6280.92654886,0.00010445,2]
[400425581,1767539440984,-4934.84574406,0.00010576,2]
[400425583,1767539440995,-200.0,0.00010577,2]
[400425585,1767539441004,-631.56,0.000106,2]
[400425587,1767539441015,-391.08159099,0.0001064,2]
[400425589,1767539441028,-2445.72241294,0.00010681,2]
[400425591,1767539441038,-5846.93902245,0.0001074,2]
[400425593,1767539441047,-800.0,0.00010784,2]
[400425595,1767539441057,-304.02245372,0.00010785,2]
[400425597,1767539441067,-631.56,0.000108,2]
[400425599,1767539441076,-151.95444379,0.00010822,2]
[400425601,1767539441086,-2445.72241294,0.00010847,2]
[400425603,1767539441096,-3550.14427952,0.00010852,2]
[400425605,1767539441105,-500.0,0.00010959,2]
[400425607,1767539441114,-500.0,0.00010959,2]
[400425609,1767539441124,-500.0,0.00010959,2]
[400425611,1767539441134,-229.61979855,0.00010959,2]
[400425613,1767539441144,-500.0,0.00010959,2]
[400425615,1767539441154,-500.0,0.00010959,2]
[400425617,1767539441163,-500.0,0.00010959,2]
[400425619,1767539441173,-500.0,0.00010959,2]
[400425621,1767539441183,-500.0,0.00010959,2]
[400425623,1767539441192,-225.75054393,0.00010964,2]
[400425625,1767539441204,-500.0,0.00010964,2]
[400425627,1767539441213,-500.0,0.00010964,2]
[400425629,1767539441223,-500.0,0.00010964,2]
[400425631,1767539441232,-151.22238193,0.00010964,2]
[400425633,1767539441242,-150.97607757,0.00010964,2]
[400425634,1767539441251,-9813.94773259,0.00010967,2]
[400425637,1767539441261,-631.56,0.00011,2]
[400425639,1767539441271,-151.0,0.00011078,2]
[400425641,1767539441281,-156.587,0.00011078,2]
[400425642,1767539441290,-151.64128519,0.00011078,2]
[400425644,1767539441300,-250.0,0.00011078,2]
[400425646,1767539441309,-250.0,0.00011078,2]
[400425648,1767539441318,-250.0,0.00011078,2]
[400425650,1767539441328,-250.0,0.00011078,2]
[400425652,1767539441341,-250.0,0.00011078,2]
[400425654,1767539441351,-2674.60743027,0.00011078,2]
[400425656,1767539441361,-553.64373807,0.00011078,2]
[400425658,1767539441370,-250.0,0.00011078,2]
[400425660,1767539441381,-250.0,0.00011078,2]
[400425662,1767539441390,-154.59765388,0.00011078,2]
[400425664,1767539441399,-250.0,0.00011078,2]
[400425666,1767539441411,-250.0,0.00011078,2]
[400425668,1767539441425,-250.0,0.00011078,2]
[400425670,1767539441445,-250.0,0.00011078,2]
[400425672,1767539441456,-250.0,0.00011078,2]
[400425674,1767539441466,-250.0,0.00011078,2]
[400425676,1767539441475,-250.0,0.00011078,2]
[400425678,1767539441485,-270.00577006,0.00011078,2]
[400425680,1767539441494,-30000.0,0.00011078,2]
[400425682,1767539441504,-151.0,0.00011078,2]
[400425684,1767539441513,-151.0,0.00011078,2]
[400425686,1767539441522,-151.0,0.00011078,2]
[400425688,1767539441532,-151.0,0.00011078,2]
[400425690,1767539441542,-151.0,0.00011078,2]
[400425692,1767539441552,-151.0,0.00011078,2]
[400425694,1767539441561,-151.0,0.00011078,2]
[400425696,1767539441571,-151.0,0.00011078,2]
[400425698,1767539441580,-151.0,0.00011078,2]
[400425699,1767539441589,-151.0,0.00011078,2]
[400425701,1767539441599,-151.0,0.00011078,2]
[400425703,1767539441608,-151.0,0.00011078,2]
[400425705,1767539441618,-259.78430152,0.00011096,2]
[400425708,1767539441627,-152.35072366,0.00011096,2]
[400425709,1767539441638,-672.94324628,0.00011099,4]
[400425712,1767539441647,-500.0,0.00011101,2]
[400425713,1767539441657,-600.0,0.00011101,2]
[400425715,1767539441666,-500.0,0.00011101,2]
[400425717,1767539441676,-2445.72241294,0.00011115,2]
[400425720,1767539441687,-200.0,0.00011167,10]
[400425722,1767539441696,-720.0,0.00011212,2]
[400425723,1767539441705,-500.0,0.00011238,2]
[400425725,1767539441714,-500.0,0.00011238,2]
[400425727,1767539441723,-156.04,0.00011262,2]
[400425730,1767539441734,-184.80545578,0.00011297,2]
[400425731,1767539441744,-1387.29017852,0.00011301,4]
[400425733,1767539441753,-300.0,0.00011345,2]
[400425735,1767539441763,-747.0,0.00011346,2]
[400425736,1767539441772,-587.0,0.00011346,2]
[400425737,1767539441781,-2445.72241294,0.00011354,2]
[400425738,1767539441791,-500.0,0.00011375,2]
[400425739,1767539441800,-500.0,0.00011375,2]
[400425740,1767539441810,-500.0,0.00011512,2]
[400425741,1767539441819,-500.0,0.00011512,2]
[400425742,1767539441828,-574.12855637,0.00011626,2]
[400425743,1767539441838,-31110.0,0.00011626,2]
[400425744,1767539441848,-500.0,0.00011649,2]
[400425745,1767539441858,-500.0,0.00011649,2]
[400425746,1767539441867,-596.9416687,0.00011786,2]
[400425747,1767539441877,-500.0,0.00011786,2]
[400425748,1767539441887,-355.61506117,0.00011923,2]
[400425749,1767539441896,-151.0,0.00012174,2]
[400425750,1767539441906,-595.37131296,0.00012174,2]
[400425751,1767539441916,-32261.07,0.00012174,2]
[400425752,1767539441925,-2924.05036188,0.00012198,2]
[400425753,1767539441936,-7645.0716405,0.00012205,2]
[400425754,1767539441946,-2691.77298513,0.00012269,4]
[400425755,1767539441955,-211.89263414,0.00012277,2]
[400425756,1767539441965,-5250.21641928,0.00012325,2]
[400425757,1767539441974,-1486.55,0.00012329,2]
[400425758,1767539441984,-1238.79,0.00012329,2]
[400425759,1767539441994,-1032.32,0.00012329,2]
[400425760,1767539442003,-860.27,0.00012329,2]
[400425762,1767539442014,-716.89,0.00012329,2]
[400425764,1767539442024,-597.41,0.00012329,2]
[400425766,1767539442034,-497.84,0.00012329,2]
[400425768,1767539442043,-414.87,0.00012329,2]
[400425770,1767539442053,-345.72,0.00012329,2]
[400425772,1767539442062,-288.1,0.00012329,2]
[400425774,1767539442072,-240.09,0.00012329,2]
[400425776,1767539442081,-200.07,0.00012329,2]
[400425778,1767539442091,-166.73,0.00012329,2]
[400425780,1767539442101,-833.66,0.00012329,2]
[400425782,1767539442111,-179.273403,0.00012329,2]
[400425784,1767539442120,-179.273403,0.00012329,2]
[400425786,1767539442130,-179.273403,0.00012329,2]
[400425788,1767539442140,-179.273403,0.00012329,2]
[400425790,1767539442150,-500.0,0.00012329,2]
[400425791,1767539442160,-500.0,0.00012329,2]
[400425794,1767539442170,-500.0,0.00012329,2]
[400425795,1767539442180,-500.0,0.00012329,2]
[400425798,1767539442190,-500.0,0.00012329,2]
[400425800,1767539442200,-500.0,0.00012329,2]
[400425802,1767539442210,-500.0,0.00012329,2]
[400425804,1767539442219,-500.0,0.00012329,2]
[400425805,1767539442229,-500.0,0.00012329,2]
[400425808,1767539442241,-500.0,0.00012329,2]
[400425810,1767539442251,-500.0,0.00012329,2]
[400425812,1767539442261,-500.0,0.00012329,2]
[400425814,1767539442271,-500.0,0.00012329,2]
[400425816,1767539442281,-500.0,0.00012329,2]
[400425818,1767539442291,-500.0,0.00012329,2]
[400425820,1767539442301,-500.0,0.00012329,2]
[400425822,1767539442310,-500.0,0.00012329,2]
[400425824,1767539442320,-500.0,0.00012329,2]
[400425826,1767539442333,-232.62165564,0.00012329,2]
[400425828,1767539442346,-500.0,0.00012329,2]
[400425830,1767539442356,-500.0,0.00012329,2]
[400425832,1767539442366,-500.0,0.00012329,2]
[400425834,1767539442376,-500.0,0.00012329,2]
[400425836,1767539442386,-500.0,0.00012329,2]
[400425838,1767539442396,-500.0,0.00012329,2]
[400425840,1767539442406,-500.0,0.00012329,2]
[400425842,1767539442417,-500.0,0.00012329,2]
[400425844,1767539442427,-500.0,0.00012329,2]
[400425846,1767539442437,-500.0,0.00012329,2]
[400425848,1767539442447,-500.0,0.00012329,2]
[400425850,1767539442457,-500.0,0.00012329,2]
[400425852,1767539442466,-500.0,0.00012329,2]
[400425853,1767539442476,-500.0,0.00012329,2]
[400425854,1767539442485,-500.0,0.00012329,2]
[400425855,1767539442494,-864.0,0.00012333,2]
[400425856,1767539442680,-548.64030971,0.00012419,2]
[400425857,1767539442690,-823.0,0.00012481,2]
[400425858,1767539442700,-737.05582535,0.00012536,2]
[400425859,1767539442708,-1705.8460594,0.00012699,2]
[400425860,1767539442718,-617.40005154,0.00012722,2]
[400425861,1767539442727,-33454.72959,0.00012722,2]
[400425862,1767539442737,-1139988.30920098,0.0001287,2]
[400425863,1767539442746,-3277.31448101,0.00012923,2]
[400425864,1767539442755,-3346.2982734,0.00012963,4]
[400425866,1767539442765,-7137.10260308,0.00013,2]
[400425867,1767539442775,-3938.30304856,0.00013001,4]
[400425868,1767539442785,-1750.00296161,0.00013106,4]
[400425871,1767539442795,-1041.66666667,0.00013191,2]
[400425873,1767539442804,-1612.65427736,0.00013195,2]
[400425874,1767539442814,-640.24385345,0.0001327,2]
[400425875,1767539442824,-16207.6394392,0.0001327,2]
[400425876,1767539442833,-500.0,0.00013273,2]
[400425877,1767539442843,-500.0,0.00013273,2]
[400425879,1767539442853,-500.0,0.00013273,2]
[400425880,1767539442863,-500.0,0.00013273,2]
[400425881,1767539442873,-500.0,0.00013273,2]
[400425882,1767539442883,-500.0,0.00013273,2]
[400425883,1767539442892,-500.0,0.00013273,2]
[400425884,1767539442902,-500.0,0.00013273,2]
[400425885,1767539442911,-500.0,0.00013273,2]
[400425886,1767539442919,-500.0,0.00013273,2]
[400425887,1767539442928,-500.0,0.00013273,2]
[400425888,1767539442939,-500.0,0.00013273,2]
[400425889,1767539442949,-500.0,0.00013273,2]
[400425890,1767539442958,-500.0,0.00013273,2]
[400425891,1767539442967,-500.0,0.00013273,2]
[400425892,1767539442977,-500.0,0.00013273,2]
[400425893,1767539442986,-500.66535863,0.00013273,2]
[400425894,1767539442996,-500.0,0.00013273,2]
[400425895,1767539443006,-500.0,0.00013273,2]
[400425896,1767539443015,-500.0,0.00013273,2]
[400425897,1767539443025,-500.0,0.00013273,2]
[400425898,1767539443034,-500.0,0.00013273,2]
[400425899,1767539443043,-500.0,0.00013273,2]
[400425900,1767539443053,-500.33450546,0.00013273,2]
[400425901,1767539443063,-520.29648728,0.00013273,2]
[400425902,1767539443072,-500.0,0.00013273,2]
[400425903,1767539443081,-500.0,0.00013273,2]
[400425904,1767539443090,-500.0,0.00013273,2]
[400425905,1767539443099,-500.0,0.00013273,2]
[400425906,1767539443110,-530.08399995,0.00013273,2]
[400425907,1767539443120,-500.0,0.00013273,2]
[400425908,1767539443129,-500.0,0.00013273,2]
[400425909,1767539443138,-500.0,0.00013273,2]
[400425910,1767539443147,-500.0,0.00013273,2]
[400425911,1767539443157,-500.0,0.00013273,2]
[400425912,1767539443166,-500.0,0.00013273,2]
[400425913,1767539443175,-500.0,0.00013273,2]
[400425914,1767539443184,-500.0,0.00013273,2]
[400425915,1767539443193,-500.39596396,0.00013273,2]
[400425916,1767539443203,-500.0,0.00013273,2]
[400425917,1767539443212,-500.0,0.00013273,2]
[400425918,1767539443222,-500.0,0.00013273,2]
[400425919,1767539443231,-500.0,0.00013273,2]
[400425920,1767539443241,-494.22531754,0.00013273,2]
[400425921,1767539443251,-500.0,0.00013273,2]
[400425922,1767539443260,-500.87675114,0.00013273,2]
[400425923,1767539443270,-500.0,0.00013273,2]
[400425924,1767539443279,-500.0,0.00013273,2]
[400425925,1767539443290,-500.0,0.00013273,2]
[400425926,1767539443299,-500.78161845,0.00013273,2]
[400425927,1767539443309,-159.29284371,0.00013273,2]
[400425928,1767539443319,-500.32554023,0.00013273,2]
[400425929,1767539443328,-205.55096652,0.00013273,2]
[400425930,1767539443341,-500.0,0.00013273,2]
[400425931,1767539443351,-6050.43272733,0.00013438,4]
[400425932,1767539443361,-10000.0,0.0001354,2]
[400425933,1767539443371,-1000.0,0.00013566,2]
[400425934,1767539443381,-5543.61155335,0.00013656,4]
[400425935,1767539443390,-300.0,0.00013673,2]
[400425936,1767539443400,-500.0,0.00013698,2]
[400425937,1767539443411,-500.0,0.00013698,2]
[400425938,1767539443422,-500.0,0.00013698,2]
[400425939,1767539443431,-500.0,0.00013698,2]
[400425940,1767539443441,-525.39041096,0.00013698,2]
[400425941,1767539443450,-1000.0,0.00013698,2]
[400425942,1767539443460,-1000.0,0.00013698,2]
[400425943,1767539443470,-1000.0,0.00013698,2]
[400425944,1767539443479,-1000.0,0.00013698,2]
[400425945,1767539443490,-1000.0,0.00013698,2]
[400425946,1767539443499,-1000.0,0.00013698,2]
[400425947,1767539443509,-1000.0,0.00013698,2]
[400425948,1767539443518,-1013.52750033,0.00013698,2]
[400425949,1767539443527,-500.0,0.00013698,2]
[400425950,1767539443537,-500.0,0.00013698,2]
[400425951,1767539443547,-500.0,0.00013698,2]
[400425952,1767539443557,-500.0,0.00013698,2]
[400425953,1767539443566,-500.0,0.00013698,2]
[400425954,1767539443576,-500.0,0.00013698,2]
[400425955,1767539443585,-500.0,0.00013698,2]
[400425956,1767539443595,-252.42483345,0.00013698,2]
[400425957,1767539443606,-513.04283332,0.00013698,2]
[400425958,1767539443615,-500.0,0.00013698,2]
[400425959,1767539443626,-500.0,0.00013698,2]
[400425960,1767539443635,-241.78088945,0.00013698,2]
[400425961,1767539443645,-466.89772029,0.00013698,2]
[400425962,1767539443654,-463.44106234,0.00013698,2]
[400425963,1767539443670,-500.0,0.00013698,2]
[400425964,1767539443680,-500.0,0.00013698,2]
[400425965,1767539443690,-500.0,0.00013698,2]
[400425966,1767539443700,-500.0,0.00013698,2]
[400425967,1767539443710,-500.0,0.00013698,2]
[400425968,1767539443720,-277.25170511,0.00013698,2]
[400425969,1767539443730,-500.0,0.00013698,2]
[400425970,1767539443740,-500.0,0.00013698,2]
[400425971,1767539443750,-500.0,0.00013698,2]
[400425972,1767539443761,-500.0,0.00013698,2]
[400425973,1767539443771,-500.0,0.00013698,2]
[400425974,1767539443781,-500.0,0.00013698,2]
[400425977,1767539443791,-500.0,0.00013698,2]
[400425979,1767539443801,-500.0,0.00013698,2]
[400425981,1767539443810,-500.0,0.00013698,2]
[400425983,1767539443820,-500.0,0.00013698,2]
[400425985,1767539443830,-500.0,0.00013698,2]
[400425986,1767539443840,-500.0,0.00013698,2]
[400425987,1767539443850,-500.0,0.00013699,2]
[400425988,1767539443862,-500.0,0.00013699,2]
[400425989,1767539443872,-500.0,0.00013699,2]
[400425990,1767539443882,-500.0,0.00013699,2]
[400425991,1767539443892,-500.0,0.00013699,2]
[400425992,1767539443903,-500.0,0.00013699,2]
[400425993,1767539443913,-505.8178267,0.00013699,2]
[400425994,1767539443923,-12143.8139578,0.00013699,2]
[400425995,1767539443935,-1000.0,0.00013699,2]
[400425996,1767539443945,-191.657624,0.00013699,2]
[400425997,1767539443955,-191.657624,0.00013699,2]
[400425998,1767539443966,-191.657624,0.00013699,2]
[400425999,1767539443976,-191.657624,0.00013699,2]
[400426000,1767539443986,-1051.987599,0.00013699,2]
[400426001,1767539443996,-500.86295152,0.00013699,2]
[400426002,1767539444006,-565.84046336,0.00013699,2]
[400426003,1767539444016,-500.71714379,0.00013699,2]
[400426004,1767539444026,-500.85765138,0.00013699,2]
[400426005,1767539444036,-500.0,0.00013699,2]
[400426006,1767539444046,-500.65442518,0.00013699,2]
[400426007,1767539444056,-501.64231058,0.00013699,2]
[400426008,1767539444066,-500.76727011,0.00013699,2]
[400426009,1767539444077,-500.8659362,0.00013699,2]
[400426010,1767539444087,-500.73288358,0.00013699,2]
[400426011,1767539444097,-500.73320513,0.00013699,2]
[400426012,1767539444107,-504.37236451,0.00013699,2]
[400426013,1767539444118,-501.23587401,0.00013699,2]
[400426014,1767539444128,-501.13869568,0.00013699,2]
[400426015,1767539444138,-500.68695717,0.00013699,2]
[400426016,1767539444149,-501.57510488,0.00013699,2]
[400426017,1767539444159,-500.59370123,0.00013699,2]
[400426018,1767539444174,-500.54648237,0.00013699,2]
[400426019,1767539444184,-500.0,0.00013699,2]
[400426020,1767539444195,-500.60483179,0.00013699,2]
[400426021,1767539444204,-500.6911085,0.00013699,2]